[Event "*** Titled Tuesday Blitz"]
[Site "Chess.com"]
[Date "2020.03.03"]
[Round "6"]
[White "davserr65"]
[Black "AyMitecK"]
[Result "1/2-1/2"]
[WhiteElo "2084"]
[BlackElo "2318"]
[TimeControl "180+1"]
[EndTime "14:00:34 PST"]
[Termination "Game drawn by agreement"]

1. Nf3 {[%clk 0:03:00.9]} 1... Nf6 {[%clk 0:02:58.9]} 2. c4 {[%clk 0:03:00.3]}
2... c5 {[%clk 0:02:58.1]} 3. g3 {[%clk 0:03:00.1]} 3... d5 {[%clk 0:02:57.5]}
4. cxd5 {[%clk 0:02:59.9]} 4... Nxd5 {[%clk 0:02:58.4]} 5. Bg2 {[%clk
0:03:00.5]} 5... Nc6 {[%clk 0:02:57.4]} 6. d4 {[%clk 0:03:00.7]} 6... e6 {[%clk
0:02:31.7]} 7. O-O {[%clk 0:02:56.6]} 7... Bd7 {[%clk 0:02:08.8]} 8. Nc3 {[%clk
0:02:46.3]} 8... cxd4 {[%clk 0:02:05.4]} 9. Nxd5 {[%clk 0:02:46]} 9... exd5
{[%clk 0:02:05.4]} 10. Nxd4 {[%clk 0:02:46.4]} 10... Bc5 {[%clk 0:01:58.6]} 11.
Nb3 {[%clk 0:02:43.7]} 11... Bb6 {[%clk 0:01:50.6]} 12. Qxd5 {[%clk 0:02:40.6]}
12... O-O {[%clk 0:01:43.4]} 13. Bf4 {[%clk 0:02:36.4]} 13... Qc8 {[%clk
0:01:27.7]} 14. Rac1 {[%clk 0:02:28.6]} 14... Be6 {[%clk 0:01:25.5]} 15. Qh5
{[%clk 0:02:17.9]} 15... Bg4 {[%clk 0:01:24.2]} 16. Qb5 {[%clk 0:02:07.7]} 16...
Qe6 {[%clk 0:01:08.7]} 17. e3 {[%clk 0:01:18.3]} 17... h6 {[%clk 0:00:48.8]} 18.
h3 {[%clk 0:01:18.1]} 18... Bxh3 {[%clk 0:00:46.7]} 19. Bxh3 {[%clk 0:01:04.6]}
19... Qxh3 {[%clk 0:00:47.6]} 20. a4 {[%clk 0:00:54.2]} 1/2-1/2

[Event "*** Titled Tuesday Blitz"]
[Site "Chess.com"]
[Date "2020.03.03"]
[Round "6"]
[White "MikeSailer"]
[Black "Eliwood44"]
[Result "1/2-1/2"]
[WhiteElo "2121"]
[BlackElo "2301"]
[TimeControl "180+1"]
[EndTime "14:00:49 PST"]
[Termination "Game drawn by agreement"]

1. Nf3 {[%clk 0:03:00.9]} 1... Nf6 {[%clk 0:02:59.1]} 2. b4 {[%clk 0:03:00.7]}
2... a5 {[%clk 0:02:57.3]} 3. b5 {[%clk 0:03:00.5]} 3... d5 {[%clk 0:02:57.7]}
4. a4 {[%clk 0:02:59.1]} 4... Bg4 {[%clk 0:02:58]} 5. e3 {[%clk 0:02:58.8]} 5...
Nbd7 {[%clk 0:02:57.7]} 6. Be2 {[%clk 0:02:58.4]} 6... e5 {[%clk 0:02:57.4]} 7.
Bb2 {[%clk 0:02:55.5]} 7... Bd6 {[%clk 0:02:56.9]} 8. d4 {[%clk 0:02:49.5]} 8...
e4 {[%clk 0:02:53.2]} 9. Nfd2 {[%clk 0:02:49.5]} 9... h5 {[%clk 0:02:53.3]} 10.
c4 {[%clk 0:02:49.1]} 10... c6 {[%clk 0:02:51.7]} 11. Nc3 {[%clk 0:02:43.9]}
11... Qe7 {[%clk 0:02:44.9]} 12. bxc6 {[%clk 0:02:41.5]} 12... bxc6 {[%clk
0:02:44.9]} 13. cxd5 {[%clk 0:02:42]} 13... cxd5 {[%clk 0:02:45]} 14. Nb5 {[%clk
0:02:42.2]} 14... O-O {[%clk 0:02:41.7]} 15. Nxd6 {[%clk 0:02:40.7]} 15... Qxd6
{[%clk 0:02:41.6]} 16. Ba3 {[%clk 0:02:40.7]} 16... Qe6 {[%clk 0:02:40.7]} 17.
Bxf8 {[%clk 0:02:39.5]} 17... Nxf8 {[%clk 0:02:41.6]} 18. Bxg4 {[%clk
0:02:27.6]} 18... hxg4 {[%clk 0:02:38.3]} 19. Nb3 {[%clk 0:02:17.9]} 19... Ng6
{[%clk 0:02:34.2]} 20. Nc5 {[%clk 0:02:17.4]} 20... Qf5 {[%clk 0:02:33.3]} 21.
Rb1 {[%clk 0:01:58]} 21... Nh4 {[%clk 0:02:24.6]} 22. O-O {[%clk 0:01:46.9]}
22... Nh7 {[%clk 0:02:21.3]} 23. Rb6 {[%clk 0:00:57.2]} 23... Ng5 {[%clk
0:02:16.4]} 24. Qb1 {[%clk 0:00:57]} 24... Ngf3+ {[%clk 0:02:05.5]} 25. Kh1
{[%clk 0:00:51.7]} 25... Nxg2 {[%clk 0:02:02.7]} 26. Rb8+ {[%clk 0:00:51.4]}
26... Kh7 {[%clk 0:02:00.7]} 27. Rxa8 {[%clk 0:00:39.2]} 27... Nd2 {[%clk
0:01:43.3]} 28. Qb8 {[%clk 0:00:23]} 28... Nxf1 {[%clk 0:01:39.4]} 29. Kxg2
{[%clk 0:00:19.8]} 29... Qf3+ {[%clk 0:01:10]} 30. Kxf1 {[%clk 0:00:19.4]} 30...
Qd1+ {[%clk 0:01:10]} 1/2-1/2

[Event "*** Titled Tuesday Blitz"]
[Site "Chess.com"]
[Date "2020.03.03"]
[Round "6"]
[White "Jospem"]
[Black "MarcoRiehle"]
[Result "1-0"]
[WhiteElo "2924"]
[BlackElo "2750"]
[TimeControl "180+1"]
[EndTime "14:00:54 PST"]
[Termination "Jospem won by resignation"]

1. c4 {[%clk 0:03:00.9]} 1... c5 {[%clk 0:02:58.6]} 2. Nf3 {[%clk 0:03:00.1]}
2... Nf6 {[%clk 0:02:59]} 3. Nc3 {[%clk 0:03:00.1]} 3... d5 {[%clk 0:02:58.6]}
4. cxd5 {[%clk 0:03:00.4]} 4... Nxd5 {[%clk 0:02:59.5]} 5. e3 {[%clk 0:03:00.9]}
5... Nc6 {[%clk 0:02:59]} 6. Bc4 {[%clk 0:03:00.7]} 6... e6 {[%clk 0:02:58.6]}
7. O-O {[%clk 0:03:00.9]} 7... Be7 {[%clk 0:02:58.2]} 8. d4 {[%clk 0:03:01.2]}
8... O-O {[%clk 0:02:56.6]} 9. Qe2 {[%clk 0:02:59.1]} 9... cxd4 {[%clk
0:02:55.8]} 10. exd4 {[%clk 0:02:59.2]} 10... Bf6 {[%clk 0:02:54.3]} 11. Rd1
{[%clk 0:02:58]} 11... Re8 {[%clk 0:02:48]} 12. Ne4 {[%clk 0:02:57.4]} 12... b6
{[%clk 0:02:43.5]} 13. a3 {[%clk 0:02:49.6]} 13... Bb7 {[%clk 0:02:41.5]} 14.
Ba2 {[%clk 0:02:46.7]} 14... Rc8 {[%clk 0:02:38.7]} 15. b4 {[%clk 0:02:35.8]}
15... Bxd4 {[%clk 0:02:19.1]} 16. Bg5 {[%clk 0:02:28.6]} 16... Nf6 {[%clk
0:02:06.5]} 17. Bxf6 {[%clk 0:02:04.8]} 17... gxf6 {[%clk 0:02:07.4]} 18. b5
{[%clk 0:02:05.2]} 18... Bxa1 {[%clk 0:01:46]} 19. bxc6 {[%clk 0:02:05.3]} 19...
Rxc6 {[%clk 0:01:37.1]} 20. Rxd8 {[%clk 0:01:54.1]} 20... Rxd8 {[%clk
0:01:37.5]} 21. h4 {[%clk 0:01:49.6]} 21... f5 {[%clk 0:01:33.2]} 22. Neg5
{[%clk 0:01:42.3]} 22... h6 {[%clk 0:01:30.9]} 23. Nh3 {[%clk 0:01:25.5]} 23...
Rc1+ {[%clk 0:01:29.3]} 24. Kh2 {[%clk 0:01:25]} 24... Rdd1 {[%clk 0:01:26.1]}
25. Bxe6 {[%clk 0:01:18]} 25... fxe6 {[%clk 0:01:21.2]} 26. Qxe6+ {[%clk
0:01:15.7]} 26... Kf8 {[%clk 0:01:21.8]} 27. Qxf5+ {[%clk 0:01:06.2]} 27... Ke8
{[%clk 0:01:20.6]} 28. Nf4 {[%clk 0:00:57.6]} 28... Bxf3 {[%clk 0:01:10.6]} 29.
gxf3 {[%clk 0:00:57.8]} 29... Rh1+ {[%clk 0:00:58]} 30. Kg3 {[%clk 0:00:57.3]}
30... Rhg1+ {[%clk 0:00:58.3]} 31. Ng2 {[%clk 0:00:55.8]} 31... Rc7 {[%clk
0:00:55.4]} 32. Kh2 {[%clk 0:00:53.6]} 32... Re1 {[%clk 0:00:49.3]} 33. Nxe1
{[%clk 0:00:53]} 1-0

[Event "*** Titled Tuesday Blitz"]
[Site "Chess.com"]
[Date "2020.03.03"]
[Round "6"]
[White "HashtagChess"]
[Black "VFernandezB"]
[Result "1/2-1/2"]
[WhiteElo "1603"]
[BlackElo "2239"]
[TimeControl "180+1"]
[EndTime "14:00:55 PST"]
[Termination "Game drawn by agreement"]

1. e4 {[%clk 0:03:00]} 1... c5 {[%clk 0:02:59.3]} 2. Nf3 {[%clk 0:02:58.7]} 2...
Nc6 {[%clk 0:02:58.9]} 3. Bb5 {[%clk 0:02:55.7]} 3... e6 {[%clk 0:02:58.2]} 4.
O-O {[%clk 0:02:53.6]} 4... Nge7 {[%clk 0:02:57.8]} 5. Re1 {[%clk 0:02:52]} 5...
a6 {[%clk 0:02:55.9]} 6. Bf1 {[%clk 0:02:52.4]} 6... d5 {[%clk 0:02:54.8]} 7.
exd5 {[%clk 0:02:42.3]} 7... Nxd5 {[%clk 0:02:54.4]} 8. c3 {[%clk 0:02:26.8]}
8... Bd6 {[%clk 0:02:51]} 9. d4 {[%clk 0:02:26.6]} 9... cxd4 {[%clk 0:02:50.3]}
10. Nxd4 {[%clk 0:02:24.5]} 10... Nxd4 {[%clk 0:02:49.5]} 11. Qxd4 {[%clk
0:02:25.4]} 11... O-O {[%clk 0:02:48.8]} 12. Nd2 {[%clk 0:02:21.9]} 12... Qc7
{[%clk 0:02:48.3]} 13. h3 {[%clk 0:02:17.4]} 13... Rd8 {[%clk 0:02:47.7]} 14.
Qh4 {[%clk 0:02:05.7]} 14... b5 {[%clk 0:02:42.5]} 15. Ne4 {[%clk 0:02:04.6]}
15... Be7 {[%clk 0:02:41.9]} 16. Qh5 {[%clk 0:01:37.2]} 16... Bb7 {[%clk
0:02:37.7]} 17. Bg5 {[%clk 0:01:29.2]} 17... Nf4 {[%clk 0:02:32.5]} 18. Bxf4
{[%clk 0:01:18.2]} 18... Qxf4 {[%clk 0:02:30.8]} 19. Ng3 {[%clk 0:01:10.7]}
19... g6 {[%clk 0:02:29.5]} 20. Qg4 {[%clk 0:01:06.8]} 20... Qxg4 {[%clk
0:02:27.6]} 21. hxg4 {[%clk 0:01:07.7]} 21... Bc5 {[%clk 0:02:26.8]} 22. Rad1
{[%clk 0:01:04.1]} 22... f5 {[%clk 0:02:26.6]} 23. gxf5 {[%clk 0:01:01.2]} 23...
exf5 {[%clk 0:02:26]} 24. Ne2 {[%clk 0:00:58.2]} 24... Bd5 {[%clk 0:02:24.1]}
25. b3 {[%clk 0:00:53.6]} 25... Bf7 {[%clk 0:02:20.6]} 26. Nf4 {[%clk
0:00:52.3]} 26... g5 {[%clk 0:02:17.7]} 27. Nd3 {[%clk 0:00:46]} 27... Bb6
{[%clk 0:02:14.9]} 28. Ne5 {[%clk 0:00:45.6]} 28... Rxd1 {[%clk 0:02:10.5]} 29.
Rxd1 {[%clk 0:00:46.5]} 29... Rd8 {[%clk 0:02:10.1]} 30. Rxd8+ {[%clk
0:00:45.2]} 30... Bxd8 {[%clk 0:01:56.8]} 31. Nxf7 {[%clk 0:00:45.4]} 31... Kxf7
{[%clk 0:01:57.1]} 32. c4 {[%clk 0:00:45.2]} 32... b4 {[%clk 0:01:57.2]} 33. Bd3
{[%clk 0:00:36.4]} 33... Kf6 {[%clk 0:01:56.5]} 34. Kf1 {[%clk 0:00:36.8]} 34...
Ke5 {[%clk 0:01:56.7]} 35. Ke2 {[%clk 0:00:37.3]} 35... Bb6 {[%clk 0:01:56.4]}
36. c5 {[%clk 0:00:33.8]} 36... Bxc5 {[%clk 0:01:56.3]} 37. Bxa6 {[%clk
0:00:34.3]} 37... Kd4 {[%clk 0:01:56.9]} 38. Bd3 {[%clk 0:00:31.4]} 38... f4
{[%clk 0:01:55.6]} 39. Bxh7 {[%clk 0:00:30.8]} 39... Kc3 {[%clk 0:01:55.9]} 40.
Kf3 {[%clk 0:00:27.5]} 40... Kb2 {[%clk 0:01:54.8]} 41. Kg4 {[%clk 0:00:27.2]}
41... Bxf2 {[%clk 0:01:54.6]} 42. Kxg5 {[%clk 0:00:27.2]} 42... Bg3 {[%clk
0:01:55.3]} 43. Bg8 {[%clk 0:00:24.7]} 43... Kxa2 {[%clk 0:01:55.5]} 44. Bd5
{[%clk 0:00:24.5]} 44... Kb2 {[%clk 0:01:55.8]} 45. Kf5 {[%clk 0:00:24.3]} 45...
Kc3 {[%clk 0:01:56.7]} 46. Ke4 {[%clk 0:00:22.9]} 1/2-1/2

[Event "*** Titled Tuesday Blitz"]
[Site "Chess.com"]
[Date "2020.03.03"]
[Round "6"]
[White "OparinGrigoriy"]
[Black "EugeneRougon"]
[Result "1-0"]
[WhiteElo "3010"]
[BlackElo "2685"]
[TimeControl "180+1"]
[EndTime "14:01:03 PST"]
[Termination "OparinGrigoriy won by resignation"]

1. Nf3 {[%clk 0:02:55]} 1... d5 {[%clk 0:02:59.7]} 2. g3 {[%clk 0:02:55.9]} 2...
Bg4 {[%clk 0:02:58.7]} 3. Bg2 {[%clk 0:02:55.7]} 3... c6 {[%clk 0:02:58.9]} 4.
O-O {[%clk 0:02:50.1]} 4... Nd7 {[%clk 0:02:58.8]} 5. d3 {[%clk 0:02:49.6]} 5...
Ngf6 {[%clk 0:02:53]} 6. c4 {[%clk 0:02:44]} 6... dxc4 {[%clk 0:02:32.6]} 7.
dxc4 {[%clk 0:02:44.9]} 7... Bxf3 {[%clk 0:02:32.3]} 8. Bxf3 {[%clk 0:02:45.8]}
8... Ne5 {[%clk 0:02:32.1]} 9. Nd2 {[%clk 0:02:45.9]} 9... Nxf3+ {[%clk
0:02:24.3]} 10. Nxf3 {[%clk 0:02:46.8]} 10... Qxd1 {[%clk 0:02:20.9]} 11. Rxd1
{[%clk 0:02:47.7]} 11... g6 {[%clk 0:01:52]} 12. Rd3 {[%clk 0:02:40.2]} 12...
Bg7 {[%clk 0:01:47.9]} 13. Rb3 {[%clk 0:02:40.1]} 13... b6 {[%clk 0:01:43.8]}
14. a4 {[%clk 0:02:40.6]} 14... O-O {[%clk 0:01:40.7]} 15. a5 {[%clk 0:02:40]}
15... Nd7 {[%clk 0:01:40.6]} 16. Be3 {[%clk 0:02:39.9]} 16... Rfb8 {[%clk
0:01:31.4]} 17. axb6 {[%clk 0:02:29.8]} 17... axb6 {[%clk 0:01:31.3]} 18. Rxa8
{[%clk 0:02:30.7]} 18... Rxa8 {[%clk 0:01:32.2]} 19. Bxb6 {[%clk 0:02:31.4]}
19... Rb8 {[%clk 0:01:28.2]} 20. c5 {[%clk 0:02:31.4]} 20... Nxc5 {[%clk
0:01:26.9]} 21. Rb4 {[%clk 0:02:21.4]} 21... Na6 {[%clk 0:00:52.2]} 22. Rb3
{[%clk 0:02:21]} 22... Nc7 {[%clk 0:00:36.4]} 23. Nd2 {[%clk 0:02:16.9]} 23...
Nd5 {[%clk 0:00:35.3]} 24. Bd4 {[%clk 0:02:11.2]} 24... Rxb3 {[%clk 0:00:30.2]}
25. Nxb3 {[%clk 0:02:12.1]} 25... e5 {[%clk 0:00:28]} 26. e4 {[%clk 0:02:02.5]}
26... Nb4 {[%clk 0:00:20.4]} 27. Bc3 {[%clk 0:02:00.2]} 27... Nd3 {[%clk
0:00:20.6]} 28. Kf1 {[%clk 0:01:59.1]} 28... c5 {[%clk 0:00:18.7]} 29. Ke2
{[%clk 0:01:57]} 29... c4 {[%clk 0:00:17.5]} 30. Na5 {[%clk 0:01:57.5]} 30...
Nc5 {[%clk 0:00:17.1]} 31. Nxc4 {[%clk 0:01:57.3]} 31... Nxe4 {[%clk 0:00:16.8]}
32. Bxe5 {[%clk 0:01:57.8]} 32... f6 {[%clk 0:00:16.3]} 33. Bd4 {[%clk
0:01:57.8]} 33... Kf7 {[%clk 0:00:16.4]} 34. Kd3 {[%clk 0:01:55]} 34... Ng5
{[%clk 0:00:16.3]} 35. b4 {[%clk 0:01:54.8]} 35... Ke6 {[%clk 0:00:15.4]} 36. b5
{[%clk 0:01:54.9]} 36... Kd5 {[%clk 0:00:15.8]} 37. Ne3+ {[%clk 0:01:52.4]}
37... Kd6 {[%clk 0:00:15.3]} 38. Kc4 {[%clk 0:01:52.7]} 38... Ne6 {[%clk
0:00:15.2]} 39. Bc3 {[%clk 0:01:51.4]} 39... f5 {[%clk 0:00:11.6]} 40. Bxg7
{[%clk 0:01:46.4]} 40... Nxg7 {[%clk 0:00:12.5]} 41. Nc2 {[%clk 0:01:46.7]}
41... Ne6 {[%clk 0:00:11.1]} 42. Nd4 {[%clk 0:01:47.1]} 42... Ng5 {[%clk
0:00:11.5]} 43. f3 {[%clk 0:01:46.9]} 43... Nh3 {[%clk 0:00:10.5]} 44. b6 {[%clk
0:01:43.8]} 44... Ng1 {[%clk 0:00:08.6]} 45. Kb5 {[%clk 0:01:43.7]} 45... Kd7
{[%clk 0:00:08.3]} 46. Ka6 {[%clk 0:01:43.6]} 1-0

[Event "*** Titled Tuesday Blitz"]
[Site "Chess.com"]
[Date "2020.03.03"]
[Round "6"]
[White "SerGo055"]
[Black "marianokar"]
[Result "0-1"]
[WhiteElo "2518"]
[BlackElo "2403"]
[TimeControl "180+1"]
[EndTime "14:01:03 PST"]
[Termination "marianokar won by resignation"]

1. d4 {[%clk 0:03:00.5]} 1... Nf6 {[%clk 0:02:59]} 2. Nf3 {[%clk 0:03:01]} 2...
e6 {[%clk 0:02:58.1]} 3. c4 {[%clk 0:03:01.2]} 3... d5 {[%clk 0:02:54.5]} 4. Nc3
{[%clk 0:03:01.2]} 4... Bb4 {[%clk 0:02:53.6]} 5. Bg5 {[%clk 0:03:00.3]} 5...
Nbd7 {[%clk 0:02:51.9]} 6. Qb3 {[%clk 0:02:59.8]} 6... c5 {[%clk 0:02:51]} 7.
dxc5 {[%clk 0:02:58]} 7... Qa5 {[%clk 0:02:50.2]} 8. Bxf6 {[%clk 0:02:54.9]}
8... Nxf6 {[%clk 0:02:43.8]} 9. e3 {[%clk 0:02:55.1]} 9... O-O {[%clk 0:02:39]}
10. a3 {[%clk 0:02:51.5]} 10... Bxc3+ {[%clk 0:02:38]} 11. Qxc3 {[%clk
0:02:51.3]} 11... Qxc3+ {[%clk 0:02:09.8]} 12. bxc3 {[%clk 0:02:52.2]} 12... Bd7
{[%clk 0:01:57.5]} 13. Rb1 {[%clk 0:02:47.9]} 13... Rfc8 {[%clk 0:01:47.1]} 14.
Rxb7 {[%clk 0:02:46.3]} 14... Rxc5 {[%clk 0:01:40.6]} 15. Ne5 {[%clk 0:02:44.8]}
15... Be8 {[%clk 0:01:27]} 16. Be2 {[%clk 0:02:23.6]} 16... dxc4 {[%clk
0:01:05.1]} 17. Nxc4 {[%clk 0:02:07.2]} 17... Bc6 {[%clk 0:01:01.1]} 18. Rb4
{[%clk 0:01:51.4]} 18... Bxg2 {[%clk 0:00:57.9]} 19. Rg1 {[%clk 0:01:51.3]}
19... Bc6 {[%clk 0:00:52.4]} 20. Rb3 {[%clk 0:00:45.8]} 20... Bd5 {[%clk
0:00:45.9]} 21. Rb4 {[%clk 0:00:44.6]} 21... a5 {[%clk 0:00:44.8]} 22. Ra4
{[%clk 0:00:36.7]} 22... Bc6 {[%clk 0:00:42.4]} 23. Nb6 {[%clk 0:00:36.9]} 23...
Bxa4 {[%clk 0:00:39.3]} 24. Nxa8 {[%clk 0:00:36.3]} 24... Rxc3 {[%clk 0:00:39]}
25. Kd2 {[%clk 0:00:36.1]} 25... Ne4+ {[%clk 0:00:38.3]} 26. Ke1 {[%clk
0:00:35.4]} 26... Rc1+ {[%clk 0:00:38.1]} 27. Bd1 {[%clk 0:00:35.4]} 27... Rxd1+
{[%clk 0:00:37.9]} 28. Ke2 {[%clk 0:00:35.5]} 28... Rxg1 {[%clk 0:00:37.8]} 0-1

[Event "*** Titled Tuesday Blitz"]
[Site "Chess.com"]
[Date "2020.03.03"]
[Round "6"]
[White "Witik"]
[Black "Sunnika"]
[Result "1-0"]
[WhiteElo "2650"]
[BlackElo "2403"]
[TimeControl "180+1"]
[EndTime "14:01:04 PST"]
[Termination "Witik won by checkmate"]

1. c3 {[%clk 0:03:00.9]} 1... d5 {[%clk 0:02:59.3]} 2. d3 {[%clk 0:03:00.8]}
2... Bg4 {[%clk 0:02:57.6]} 3. Qa4+ {[%clk 0:02:57.1]} 3... Bd7 {[%clk
0:02:57.8]} 4. Qb3 {[%clk 0:02:54.9]} 4... Bc8 {[%clk 0:02:49.5]} 5. h3 {[%clk
0:02:51.3]} 5... e5 {[%clk 0:02:48.5]} 6. g4 {[%clk 0:02:50.7]} 6... h6 {[%clk
0:02:46]} 7. Bg2 {[%clk 0:02:50]} 7... c6 {[%clk 0:02:45.1]} 8. Nd2 {[%clk
0:02:49.9]} 8... Bd6 {[%clk 0:02:44.3]} 9. Nf1 {[%clk 0:02:49.7]} 9... Nd7
{[%clk 0:02:42.7]} 10. Ng3 {[%clk 0:02:49.7]} 10... Ne7 {[%clk 0:02:41.2]} 11.
Nf3 {[%clk 0:02:48.4]} 11... Nc5 {[%clk 0:02:39.4]} 12. Qc2 {[%clk 0:02:47.6]}
12... e4 {[%clk 0:02:38.2]} 13. Nd4 {[%clk 0:02:21.6]} 13... exd3 {[%clk
0:02:36.6]} 14. exd3 {[%clk 0:02:21.3]} 14... O-O {[%clk 0:02:35.7]} 15. Be3
{[%clk 0:02:17.3]} 15... Ng6 {[%clk 0:02:34.7]} 16. O-O-O {[%clk 0:02:14]} 16...
Nf4 {[%clk 0:02:35.2]} 17. Bf3 {[%clk 0:02:09.4]} 17... a5 {[%clk 0:02:32.9]}
18. Ndf5 {[%clk 0:02:00.9]} 18... a4 {[%clk 0:02:18.2]} 19. Rhg1 {[%clk
0:01:53.1]} 19... a3 {[%clk 0:02:13.6]} 20. b3 {[%clk 0:01:39.4]} 20... Nce6
{[%clk 0:02:13.1]} 21. d4 {[%clk 0:01:27.5]} 21... b5 {[%clk 0:02:05.3]} 22. h4
{[%clk 0:01:21.3]} 22... b4 {[%clk 0:01:54.5]} 23. cxb4 {[%clk 0:01:16.8]} 23...
Bxb4 {[%clk 0:01:53.2]} 24. g5 {[%clk 0:01:00.6]} 24... hxg5 {[%clk 0:01:45.4]}
25. hxg5 {[%clk 0:00:58.3]} 25... Nxg5 {[%clk 0:01:35.3]} 26. Bxf4 {[%clk
0:00:48.8]} 26... Nxf3 {[%clk 0:01:34.3]} 27. Nh6+ {[%clk 0:00:48.5]} 27... gxh6
{[%clk 0:01:16.8]} 28. Nh5+ {[%clk 0:00:48.2]} 28... Nxg1 {[%clk 0:01:10.7]} 29.
Rxg1+ {[%clk 0:00:44.6]} 29... Kh8 {[%clk 0:01:11.2]} 30. Be5+ {[%clk
0:00:39.7]} 30... f6 {[%clk 0:01:09.6]} 31. Qg6 {[%clk 0:00:40]} 31... Qe7
{[%clk 0:00:50.2]} 32. Qxh6+ {[%clk 0:00:39.1]} 32... Qh7 {[%clk 0:00:49.8]} 33.
Bxf6+ {[%clk 0:00:34.6]} 33... Rxf6 {[%clk 0:00:50.1]} 34. Qxf6+ {[%clk
0:00:34.4]} 34... Qg7 {[%clk 0:00:50.7]} 35. Qxg7# {[%clk 0:00:34.2]} 1-0

[Event "*** Titled Tuesday Blitz"]
[Site "Chess.com"]
[Date "2020.03.03"]
[Round "6"]
[White "ckgchess"]
[Black "vova-79"]
[Result "1/2-1/2"]
[WhiteElo "2693"]
[BlackElo "2551"]
[TimeControl "180+1"]
[EndTime "14:01:05 PST"]
[Termination "Game drawn - insufficient material"]

1. e4 {[%clk 0:03:00.9]} 1... e6 {[%clk 0:02:58.4]} 2. d4 {[%clk 0:03:01]} 2...
d5 {[%clk 0:02:58.8]} 3. exd5 {[%clk 0:03:01.9]} 3... exd5 {[%clk 0:02:58.2]} 4.
Nf3 {[%clk 0:03:02.8]} 4... Bd6 {[%clk 0:02:57.8]} 5. Bd3 {[%clk 0:03:01.9]}
5... Ne7 {[%clk 0:02:57.5]} 6. O-O {[%clk 0:03:01.1]} 6... O-O {[%clk
0:02:57.8]} 7. c3 {[%clk 0:03:01]} 7... Bf5 {[%clk 0:02:56.2]} 8. Bxf5 {[%clk
0:03:00.8]} 8... Nxf5 {[%clk 0:02:55.8]} 9. Qd3 {[%clk 0:03:00.9]} 9... Ne7
{[%clk 0:02:53.5]} 10. Ng5 {[%clk 0:02:58.6]} 10... Ng6 {[%clk 0:02:48.6]} 11.
Be3 {[%clk 0:02:32.9]} 11... Nd7 {[%clk 0:02:42.1]} 12. Nd2 {[%clk 0:02:31]}
12... h6 {[%clk 0:02:39.5]} 13. Ne6 {[%clk 0:02:23.6]} 13... fxe6 {[%clk
0:02:37]} 14. Qxg6 {[%clk 0:02:22.7]} 14... Qf6 {[%clk 0:02:35.9]} 15. Qxf6
{[%clk 0:02:22.5]} 15... Rxf6 {[%clk 0:02:33.9]} 16. Nf3 {[%clk 0:02:22.5]}
16... Re8 {[%clk 0:02:30.1]} 17. Rfe1 {[%clk 0:02:20.6]} 17... e5 {[%clk
0:02:19.9]} 18. dxe5 {[%clk 0:02:19.3]} 18... Nxe5 {[%clk 0:02:19]} 19. Nxe5
{[%clk 0:02:19.3]} 19... Rxe5 {[%clk 0:02:18.6]} 20. Bd4 {[%clk 0:02:16.9]}
20... Rxe1+ {[%clk 0:02:16.9]} 21. Rxe1 {[%clk 0:02:17.8]} 21... Rf8 {[%clk
0:02:15.7]} 22. g3 {[%clk 0:02:13.8]} 22... c5 {[%clk 0:02:12.7]} 23. Be3 {[%clk
0:02:13.7]} 23... Kf7 {[%clk 0:02:11.9]} 24. f4 {[%clk 0:02:11.7]} 24... Re8
{[%clk 0:02:09.3]} 25. Kf2 {[%clk 0:02:09.6]} 25... h5 {[%clk 0:02:06.6]} 26.
Kf3 {[%clk 0:02:05.6]} 26... g6 {[%clk 0:02:05.7]} 27. h3 {[%clk 0:02:05.5]}
27... b6 {[%clk 0:02:02.9]} 28. Rd1 {[%clk 0:01:58.8]} 28... Ke6 {[%clk
0:02:01.5]} 29. g4 {[%clk 0:01:59.4]} 29... hxg4+ {[%clk 0:02:00.2]} 30. hxg4
{[%clk 0:02:00.3]} 30... Rh8 {[%clk 0:01:59.1]} 31. f5+ {[%clk 0:01:59.2]} 31...
gxf5 {[%clk 0:01:57.4]} 32. gxf5+ {[%clk 0:02:00.1]} 32... Kxf5 {[%clk
0:01:56.4]} 33. Rxd5+ {[%clk 0:02:00.6]} 33... Ke6 {[%clk 0:01:56]} 34. Rd2
{[%clk 0:01:57.5]} 34... Rh3+ {[%clk 0:01:47.3]} 35. Ke4 {[%clk 0:01:31.3]}
35... Rh4+ {[%clk 0:01:44.1]} 36. Kd3 {[%clk 0:01:28.6]} 36... c4+ {[%clk
0:01:42.3]} 37. Kc2 {[%clk 0:01:25.7]} 37... Rh2 {[%clk 0:01:41.6]} 38. Rxh2
{[%clk 0:01:21.3]} 38... Bxh2 {[%clk 0:01:40]} 39. b3 {[%clk 0:01:20.8]} 39...
Kd5 {[%clk 0:01:38.7]} 40. Bg5 {[%clk 0:01:18]} 40... b5 {[%clk 0:01:35.9]} 41.
Be7 {[%clk 0:01:17.8]} 41... Ke4 {[%clk 0:01:31.4]} 42. Bc5 {[%clk 0:01:11.5]}
42... a6 {[%clk 0:01:30.1]} 43. a4 {[%clk 0:01:11]} 43... Kd5 {[%clk 0:01:26.9]}
44. axb5 {[%clk 0:01:05.6]} 44... cxb3+ {[%clk 0:01:17.9]} 45. Kxb3 {[%clk
0:01:05]} 45... Kxc5 {[%clk 0:01:11]} 46. bxa6 {[%clk 0:01:05.9]} 46... Kb6
{[%clk 0:01:11.1]} 47. c4 {[%clk 0:01:05.5]} 47... Kxa6 {[%clk 0:01:10.6]} 48.
c5 {[%clk 0:01:06.4]} 48... Kb5 {[%clk 0:01:09.8]} 49. c6 {[%clk 0:01:07.3]}
49... Kxc6 {[%clk 0:01:09.1]} 1/2-1/2